lending/lending_fUSD_20240120
["ID","MTS","AMOUNT","RATE_DAILY","PERIOD"]
[312283998,1705740667009,-500.0,0.00025479,2]
[312283999,1705740667027,-500.0,0.00025479,2]
[312284000,1705740667047,-500.0,0.00025479,2]
[312284001,1705740667063,-500.0,0.00025479,2]
[312284002,1705740667078,-500.0,0.00025479,2]
[312284003,1705740667091,-500.0,0.00025479,2]
[312284004,1705740667102,-500.0,0.00025479,2]
[312284005,1705740667111,-500.0,0.00025479,2]
[312284006,1705740667133,-204.3,0.00025479,2]
[312284007,1705740667146,-500.0,0.00025479,2]
[312284008,1705740667156,-500.0,0.00025479,2]
[312284009,1705740667165,-500.0,0.00025479,2]
[312284010,1705740667175,-500.0,0.00025479,2]
[312284011,1705740667185,-646.61297171,0.00025479,2]
[312284012,1705740667199,-500.0,0.00025479,2]
[312284013,1705740667211,-500.0,0.00025479,2]
[312284014,1705740667222,-500.0,0.00025479,2]
[312284015,1705740667233,-500.0,0.00025479,2]
[312284016,1705740667243,-500.0,0.00025479,2]
[312284017,1705740667253,-362.35369511,0.00025479,2]
[312284018,1705740667263,-500.0,0.00025479,2]
[312284019,1705740667273,-500.0,0.00025479,2]
[312284020,1705740667283,-500.0,0.00025479,2]
[312284021,1705740667293,-500.0,0.00025479,2]
[312284022,1705740667303,-500.0,0.00025479,2]
[312284023,1705740667313,-500.0,0.00025479,2]
[312284024,1705740667324,-500.0,0.00025479,2]
[312284025,1705740667334,-264.59079324,0.00025479,2]
[312284026,1705740667345,-500.0,0.00025479,2]
[312284027,1705740667356,-500.0,0.00025479,2]
[312284028,1705740667367,-500.0,0.00025479,2]
[312284029,1705740667392,-500.0,0.00025479,2]
[312284030,1705740667423,-500.0,0.00025479,2]
[312284031,1705740667437,-485.37,0.00025479,2]
[312284032,1705740667463,-273.68862108,0.00025479,2]
[312284033,1705740667478,-500.0,0.00025479,2]
[312284034,1705740667493,-500.0,0.00025479,2]
[312284035,1705740667504,-636.72986625,0.00025479,2]
[312284036,1705740667539,-500.0,0.00025479,2]
[312284037,1705740667552,-500.0,0.00025479,2]
[312284038,1705740667562,-500.0,0.00025479,2]
[312284039,1705740667593,-500.0,0.00025479,2]
[312284040,1705740667613,-500.0,0.00025479,2]
[312284041,1705740667626,-500.0,0.00025479,2]
[312284042,1705740667643,-500.0,0.00025479,2]
[312284043,1705740667654,-500.0,0.00025479,2]
[312284044,1705740667664,-500.0,0.00025479,2]
[312284045,1705740667674,-268.13943054,0.00025479,2]
[312284046,1705740667684,-374.76,0.00025479,2]
[312284047,1705740667693,-500.0,0.00025479,2]
[312284048,1705740667703,-500.0,0.00025479,2]
[312284049,1705740667714,-500.0,0.00025479,2]
[312284050,1705740667723,-500.0,0.00025479,2]
[312284051,1705740667735,-500.0,0.00025479,2]
[312284052,1705740667745,-500.0,0.00025479,2]
[312284053,1705740667756,-526.87,0.00025479,2]
[312284054,1705740667765,-496.60566473,0.00025479,2]
[312284055,1705740667775,-500.0,0.00025479,2]
[312284056,1705740667785,-500.0,0.00025479,2]
[312284057,1705740667795,-500.0,0.00025479,2]
[312284058,1705740667804,-500.0,0.00025479,2]
[312284059,1705740667814,-500.0,0.00025479,2]
[312284060,1705740667824,-520.65365535,0.00025479,2]
[312284061,1705740667835,-504.92180797,0.00025479,2]
[312284062,1705740667845,-500.0,0.00025479,2]
[312284063,1705740667855,-500.0,0.00025479,2]
[312284064,1705740667865,-359.20981666,0.00025479,2]
[312284065,1705740667875,-500.0,0.00025479,2]
[312284066,1705740667886,-500.0,0.00025479,2]
[312284067,1705740667895,-500.0,0.00025479,2]
[312284068,1705740667906,-500.0,0.00025479,2]
[312284069,1705740667916,-2305.29,0.00025479,2]
[312284070,1705740667926,-500.0,0.00025479,2]
[312284071,1705740667936,-500.0,0.00025479,2]
[312284072,1705740667945,-500.0,0.00025479,2]
[312284073,1705740667955,-500.0,0.00025479,2]
[312284074,1705740667966,-500.0,0.00025479,2]
[312284075,1705740667976,-500.0,0.00025479,2]
[312284076,1705740667986,-445.08914036,0.00025479,2]
[312284077,1705740667996,-500.0,0.00025479,2]
[312284078,1705740668006,-500.0,0.00025479,2]
[312284079,1705740668016,-500.0,0.00025479,2]
[312284080,1705740668027,-500.0,0.00025479,2]
[312284081,1705740668038,-500.0,0.00025479,2]
[312284082,1705740668047,-500.0,0.00025479,2]
[312284083,1705740668057,-500.0,0.00025479,2]
[312284084,1705740668071,-500.0,0.00025479,2]
[312284085,1705740668082,-255.24,0.00025479,2]
[312284086,1705740668091,-500.0,0.00025479,2]
[312284087,1705740668102,-207.88,0.00025479,2]
[312284088,1705740668111,-500.0,0.00025479,2]
[312284089,1705740668122,-500.0,0.00025479,2]
[312284090,1705740668132,-515.54,0.00025479,2]
[312284091,1705740668143,-500.0,0.00025479,2]
[312284092,1705740668153,-500.0,0.00025479,2]
[312284093,1705740668163,-500.0,0.00025479,2]
[312284094,1705740668173,-500.0,0.00025479,2]
[312284095,1705740668184,-500.0,0.00025479,2]
[312284096,1705740668194,-500.0,0.00025479,2]
[312284097,1705740668204,-500.0,0.00025479,2]
[312284098,1705740668216,-500.0,0.00025479,2]
[312284099,1705740668227,-500.0,0.00025479,2]
[312284100,1705740668237,-500.0,0.00025479,2]
[312284101,1705740668247,-1750.51,0.00025479,2]
[312284102,1705740668257,-500.0,0.00025479,2]
[312284103,1705740668267,-500.0,0.00025479,2]
[312284104,1705740668277,-500.0,0.00025479,2]
[312284105,1705740668287,-150.0,0.00025479,2]
[312284106,1705740668297,-500.0,0.00025479,2]
[312284107,1705740668307,-500.0,0.00025479,2]
[312284108,1705740668317,-500.0,0.00025479,2]
[312284109,1705740668327,-500.0,0.00025479,2]
[312284110,1705740668337,-500.0,0.00025479,2]
[312284111,1705740668347,-500.0,0.00025479,2]
[312284112,1705740668358,-500.0,0.00025479,2]
[312284113,1705740668368,-352.2031542,0.00025479,2]
[312284114,1705740668378,-500.0,0.00025479,2]
[312284115,1705740668388,-500.0,0.00025479,2]
[312284116,1705740668399,-500.0,0.00025479,2]
[312284117,1705740668409,-500.0,0.00025479,2]
[312284118,1705740668419,-305.04,0.00025479,2]
[312284119,1705740668430,-500.0,0.00025479,2]
[312284120,1705740668498,-500.0,0.00025479,2]
[312284121,1705740668508,-500.0,0.00025479,2]
[312284122,1705740668518,-623.58,0.00025479,2]
[312284123,1705740668528,-500.0,0.00025479,2]
[312284124,1705740668538,-500.0,0.00025479,2]
[312284125,1705740668548,-500.0,0.00025479,2]
[312284126,1705740668558,-168.63369902,0.00025479,2]
[312284127,1705740668568,-500.0,0.00025479,2]
[312284128,1705740668577,-500.0,0.00025479,2]
[312284129,1705740668587,-500.0,0.00025479,2]
[312284130,1705740668596,-500.0,0.00025479,2]
[312284131,1705740668606,-500.0,0.00025479,2]
[312284132,1705740668615,-500.0,0.00025479,2]
[312284133,1705740668625,-500.0,0.00025479,2]
[312284134,1705740668635,-500.0,0.00025479,2]
[312284135,1705740668645,-500.0,0.00025479,2]
[312284136,1705740668655,-500.0,0.00025479,2]
[312284137,1705740668664,-500.0,0.00025479,2]
[312284138,1705740668674,-597.09,0.00025479,2]
[312284139,1705740668683,-500.0,0.00025479,2]
[312284140,1705740668694,-202.83,0.00025479,2]
[312284141,1705740668704,-580.30382692,0.00025479,2]
[312284142,1705740668714,-500.0,0.00025479,2]
[312284143,1705740668724,-500.0,0.00025479,2]
[312284144,1705740668733,-386.39,0.00025479,2]
[312284145,1705740668742,-551.95163508,0.00025479,2]
[312284146,1705740668752,-500.0,0.00025479,2]
[312284147,1705740668762,-561.44,0.00025479,2]
[312284148,1705740668771,-500.0,0.00025479,2]
[312284149,1705740668781,-500.0,0.00025479,2]
[312284150,1705740668791,-500.0,0.00025479,2]
[312284151,1705740668803,-500.0,0.00025479,2]
[312284152,1705740668813,-500.0,0.00025479,2]
[312284153,1705740668823,-500.0,0.00025479,2]
[312284154,1705740668840,-500.0,0.00025479,2]
[312284155,1705740668850,-515.86885816,0.00025479,2]
[312284156,1705740668863,-500.0,0.00025479,2]
[312284157,1705740668874,-500.0,0.00025479,2]
[312284158,1705740668883,-500.0,0.00025479,2]
[312284159,1705740668893,-1000.0,0.00025479,2]
[312284160,1705740668904,-500.0,0.00025479,2]
[312284161,1705740668914,-521.63117228,0.00025479,2]
[312284162,1705740668924,-267.09573947,0.00025479,2]
[312284163,1705740668934,-500.0,0.00025479,2]
[312284164,1705740668943,-500.0,0.00025479,2]
[312284165,1705740668963,-500.0,0.00025479,2]
[312284166,1705740668974,-618.94,0.00025479,2]
[312284167,1705740668983,-500.0,0.00025479,2]
[312284168,1705740668993,-500.0,0.00025479,2]
[312284169,1705740669003,-604.17,0.00025479,2]
[312284170,1705740669017,-500.0,0.00025479,2]
[312284171,1705740669027,-500.0,0.00025479,2]
[312284172,1705740669038,-500.0,0.00025479,2]
[312284173,1705740669054,-500.5,0.00025479,2]
[312284174,1705740669069,-500.0,0.00025479,2]
[312284175,1705740669083,-500.0,0.00025479,2]
[312284176,1705740669096,-206.73,0.00025479,2]
[312284177,1705740669106,-500.0,0.00025479,2]
[312284178,1705740669116,-349.84,0.00025479,2]
[312284179,1705740669126,-500.0,0.00025479,2]
[312284180,1705740669136,-500.0,0.00025479,2]
[312284181,1705740669146,-650.55,0.00025479,2]
[312284182,1705740669157,-306.27,0.00025479,2]
[312284183,1705740669167,-654.4,0.00025479,2]
[312284184,1705740669177,-500.0,0.00025479,2]
[312284185,1705740669187,-500.0,0.00025479,2]
[312284186,1705740669197,-500.0,0.00025479,2]
[312284187,1705740669207,-500.0,0.00025479,2]
[312284188,1705740669217,-500.0,0.00025479,2]
[312284189,1705740669228,-500.0,0.00025479,2]
[312284190,1705740669239,-814.37,0.00025479,2]
[312284191,1705740669249,-584.5,0.00025479,2]
[312284192,1705740669269,-426.16,0.00025479,2]
[312284193,1705740669282,-500.0,0.00025479,2]
[312284194,1705740669293,-500.0,0.00025479,2]
[312284195,1705740669303,-500.0,0.00025479,2]
[312284196,1705740669313,-154.8,0.00025479,2]
[312284197,1705740669324,-500.0,0.00025479,2]
[312284198,1705740669334,-500.0,0.00025479,2]
[312284199,1705740669345,-500.0,0.00025479,2]
[312284200,1705740669356,-2304.03,0.00025479,2]
[312284201,1705740669366,-300.0,0.00025479,2]
[312284202,1705740669376,-500.0,0.00025479,2]
[312284203,1705740669386,-500.0,0.00025479,2]
[312284204,1705740669397,-581.39,0.00025479,2]
[312284205,1705740669407,-624.17,0.00025479,2]
[312284206,1705740669416,-500.0,0.00025479,2]
[312284207,1705740669427,-500.0,0.00025479,2]
[312284208,1705740669436,-500.0,0.00025479,2]
[312284209,1705740669446,-834.08,0.00025479,2]
[312284210,1705740669456,-8258.53,0.00025479,2]
[312284211,1705740669466,-512.52,0.00025479,2]
[312284212,1705740669475,-526.13,0.00025479,2]
[312284213,1705740669484,-500.0,0.00025479,2]
[312284214,1705740669495,-500.0,0.00025479,2]
[312284215,1705740669505,-500.0,0.00025479,2]
[312284216,1705740669526,-500.0,0.00025479,2]
[312284217,1705740669536,-629.36,0.00025479,2]
[312284218,1705740669547,-500.0,0.00025479,2]
[312284219,1705740669558,-500.0,0.00025479,2]
[312284220,1705740669568,-3152.7,0.00025479,2]
[312284221,1705740669578,-1522.51,0.00025479,2]
[312284222,1705740669588,-500.0,0.00025479,2]
[312284223,1705740669598,-500.0,0.00025479,2]
[312284224,1705740669608,-500.0,0.00025479,2]
[312284225,1705740669618,-1640.38,0.00025479,2]
[312284226,1705740669641,-638.18607291,0.00025479,2]
[312284227,1705740669651,-661.58,0.00025479,2]
[312284228,1705740669662,-9834.33,0.00025479,2]
[312284229,1705740669674,-4026.87,0.00025479,2]
[312284230,1705740669684,-2194.22,0.00025479,2]
[312284231,1705740669693,-500.0,0.00025479,2]
[312284232,1705740669704,-500.0,0.00025479,2]
[312284233,1705740669714,-500.0,0.00025479,2]
[312284234,1705740669723,-500.0,0.00025479,2]
[312284235,1705740669734,-500.0,0.00025479,2]
[312284236,1705740669743,-500.0,0.00025479,2]
[312284237,1705740669754,-500.0,0.00025479,2]
[312284238,1705740669764,-692.33,0.00025479,2]
[312284239,1705740669774,-954.76,0.00025479,2]
[312284240,1705740669783,-1149.32,0.00025479,2]
[312284241,1705740669794,-500.0,0.00025479,2]
[312284242,1705740669804,-500.0,0.00025479,2]
[312284243,1705740669813,-1752.88,0.00025479,2]
[312284244,1705740669823,-500.0,0.00025479,2]
[312284245,1705740669832,-1604.07,0.00025479,2]
[312284246,1705740669841,-500.0,0.00025479,2]
[312284247,1705740669852,-373.26,0.00025479,2]
[312284248,1705740669861,-1111.05,0.00025479,2]
[312284249,1705740669870,-500.0,0.00025479,2]
[312284250,1705740669880,-500.0,0.00025479,2]
[312284251,1705740669890,-500.0,0.00025479,2]
[312284252,1705740669899,-1122.98,0.00025479,2]
[312284253,1705740669909,-724.69,0.00025479,2]
[312284254,1705740669918,-500.0,0.00025479,2]
[312284255,1705740669928,-500.0,0.00025479,2]
[312284256,1705740669938,-500.0,0.00025479,2]
[312284257,1705740669948,-500.0,0.00025479,2]
[312284258,1705740669958,-1605.74,0.00025479,2]
[312284259,1705740669968,-500.0,0.00025479,2]
[312284260,1705740669978,-500.0,0.00025479,2]
[312284261,1705740669988,-500.0,0.00025479,2]
[312284262,1705740669998,-223.37250692,0.00025479,2]
[312284263,1705740670008,-500.0,0.00025479,2]
[312284264,1705740670019,-500.0,0.00025479,2]
[312284265,1705740670029,-552.33,0.00025479,2]
[312284266,1705740670040,-779.78,0.00025479,2]
[312284267,1705740670050,-500.0,0.00025479,2]
[312284268,1705740670061,-500.0,0.00025479,2]
[312284269,1705740670072,-500.0,0.00025479,2]
[312284270,1705740670082,-500.0,0.00025479,2]
[312284271,1705740670093,-500.0,0.00025479,2]
[312284272,1705740670104,-500.0,0.00025479,2]
[312284273,1705740670113,-740.71,0.00025479,2]
[312284274,1705740670124,-500.0,0.00025479,2]
[312284275,1705740670134,-820.4,0.00025479,2]
[312284276,1705740670146,-4116.96,0.00025479,2]
[312284277,1705740670157,-500.0,0.00025479,2]
[312284278,1705740670167,-3100.58,0.00025479,2]
[312284279,1705740670177,-500.0,0.00025479,2]
[312284280,1705740670187,-508.58,0.00025479,2]
[312284281,1705740670196,-500.0,0.00025479,2]
[312284282,1705740670206,-518.39448334,0.00025479,2]
[312284283,1705740670217,-601.97,0.00025479,2]
[312284284,1705740670229,-588.27,0.00025479,2]
[312284285,1705740670239,-500.0,0.00025479,2]
[312284286,1705740670249,-2128.99,0.00025479,2]
[312284287,1705740670260,-500.0,0.00025479,2]
[312284288,1705740670270,-981.45,0.00025479,2]
[312284289,1705740670280,-500.0,0.00025479,2]
[312284290,1705740670291,-500.0,0.00025479,2]
[312284291,1705740670301,-1582.37,0.00025479,2]
[312284292,1705740670311,-500.0,0.00025479,2]
[312284293,1705740670320,-500.0,0.00025479,2]
[312284294,1705740670331,-500.0,0.00025479,2]
[312284295,1705740670341,-500.0,0.00025479,2]
[312284296,1705740670351,-500.0,0.00025479,2]
[312284297,1705740670361,-500.0,0.00025479,2]
[312284298,1705740670371,-500.0,0.00025479,2]
[312284299,1705740670381,-1302.49,0.00025479,2]
[312284300,1705740670392,-500.0,0.00025479,2]
[312284301,1705740670402,-500.0,0.00025479,2]
[312284302,1705740670411,-500.0,0.00025479,2]
[312284303,1705740670422,-531.02550611,0.00025479,2]
[312284304,1705740670432,-500.0,0.00025479,2]
[312284305,1705740670442,-500.0,0.00025479,2]
[312284306,1705740670453,-500.0,0.00025479,2]
[312284307,1705740670465,-659.73,0.00025479,2]
[312284308,1705740670476,-554.97139485,0.00025479,2]
[312284309,1705740670486,-567.95,0.00025479,2]
[312284310,1705740670497,-500.0,0.00025479,2]
[312284311,1705740670507,-500.0,0.00025479,2]
[312284312,1705740670518,-1093.63,0.00025479,2]
[312284313,1705740670528,-1831.22,0.00025479,2]
[312284314,1705740670538,-500.0,0.00025479,2]
[312284315,1705740670548,-841.85,0.00025479,2]
[312284316,1705740670558,-500.0,0.00025479,2]
[312284317,1705740670568,-500.0,0.00025479,2]
[312284318,1705740670577,-500.0,0.00025479,2]
[312284319,1705740670588,-500.0,0.00025479,2]
[312284320,1705740670597,-7858.55,0.00025479,2]
[312284321,1705740670608,-736.25,0.00025479,2]
[312284322,1705740670618,-1317.01,0.00025479,2]
[312284323,1705740670629,-748.4,0.00025479,2]
[312284324,1705740670639,-500.0,0.00025479,2]
[312284325,1705740670648,-500.0,0.00025479,2]
[312284326,1705740670659,-500.0,0.00025479,2]
[312284327,1705740670669,-794.2,0.00025479,2]
[312284328,1705740670678,-500.0,0.00025479,2]
[312284329,1705740670688,-500.0,0.00025479,2]
[312284330,1705740670698,-768.82,0.00025479,2]
[312284331,1705740670708,-670.12,0.00025479,2]
[312284332,1705740670718,-500.0,0.00025479,2]
[312284333,1705740670728,-500.0,0.00025479,2]
[312284334,1705740670738,-500.0,0.00025479,2]
[312284335,1705740670747,-500.0,0.00025479,2]
[312284336,1705740670757,-500.0,0.00025479,2]
[312284337,1705740670768,-648.73,0.00025479,2]
[312284338,1705740670779,-705.41,0.00025479,2]
[312284339,1705740670789,-500.0,0.00025479,2]
[312284340,1705740670798,-500.0,0.00025479,2]
[312284341,1705740670807,-618.34,0.00025479,2]
[312284342,1705740670817,-500.0,0.00025479,2]
[312284343,1705740670827,-500.0,0.00025479,2]
[312284344,1705740670837,-500.0,0.00025479,2]
[312284345,1705740670846,-5105.04,0.00025479,2]
[312284346,1705740670856,-862.9,0.00025479,2]
[312284347,1705740670866,-266.19,0.00025479,2]
[312284348,1705740670876,-773.43,0.00025479,2]
[312284349,1705740670886,-500.0,0.00025479,2]
[312284350,1705740670896,-647.62,0.00025479,2]
[312284351,1705740670906,-500.0,0.00025479,2]
[312284352,1705740670917,-500.0,0.00025479,2]
[312284353,1705740670926,-777.62,0.00025479,2]
[312284354,1705740670935,-1170.65,0.00025479,2]
[312284355,1705740670945,-1112.24,0.00025479,2]
[312284356,1705740670955,-611.96,0.00025479,2]
[312284357,1705740670966,-500.0,0.00025479,2]
[312284358,1705740670976,-841.6,0.00025479,2]
[312284359,1705740670986,-500.0,0.00025479,2]
[312284360,1705740670995,-500.0,0.00025479,2]
[312284361,1705740671005,-500.0,0.00025479,2]
[312284362,1705740671016,-500.0,0.00025479,2]
[312284363,1705740671026,-630.39,0.00025479,2]
[312284364,1705740671036,-508.42,0.00025479,2]
[312284365,1705740671046,-1119.82,0.00025479,2]
[312284366,1705740671056,-500.0,0.00025479,2]
[312284367,1705740671070,-535.32,0.00025479,2]
[312284368,1705740671081,-500.0,0.00025479,2]
[312284369,1705740671090,-500.0,0.00025479,2]
[312284370,1705740671101,-500.0,0.00025479,2]
[312284371,1705740671111,-240.27,0.00025479,2]
[312284372,1705740671122,-762.03,0.00025479,2]
[312284373,1705740671132,-500.0,0.00025479,2]
[312284374,1705740671143,-1848.57,0.00025479,2]
[312284375,1705740671153,-1189.41,0.00025479,2]
[312284376,1705740671163,-866.93,0.00025479,2]
[312284377,1705740671174,-500.0,0.00025479,2]
[312284378,1705740671184,-500.0,0.00025479,2]
[312284379,1705740671198,-1078.31,0.00025479,2]
[312284380,1705740671209,-500.0,0.00025479,2]
[312284381,1705740671220,-500.0,0.00025479,2]
[312284382,1705740671229,-500.0,0.00025479,2]
[312284383,1705740671240,-500.0,0.00025479,2]
[312284384,1705740671250,-50000.0,0.00025491,2]
[312284385,1705740671261,-47405.32554693,0.00025507,2]
[312284386,1705740671271,-165.61,0.00025507,2]
[312284387,1705740671281,-2158.19974672,0.00025515,2]
[312284388,1705740671291,-50000.0,0.00025529,2]
[312284389,1705740671301,-50000.0,0.00025549,2]
[312284390,1705740671311,-156.85,0.00025564,2]
[312284391,1705740671321,-196.1922768,0.00025605,2]
[312284392,1705740671331,-150.0,0.00025605,2]
[312284393,1705740671340,-3248.1004317,0.00025606,2]
[312284394,1705740671350,-157.67,0.00025622,2]
[312284395,1705740671360,-165.61,0.00025654,2]
[312284396,1705740671370,-151.88694272,0.00025673,2]
[312284397,1705740671380,-300.0,0.000257,2]
[312284398,1705740671390,-1971.609996,0.000257,2]
[312284399,1705740671400,-250.0,0.000257,2]
[312284400,1705740671410,-305.810497,0.000257,2]
[312284401,1705740671420,-151.986192,0.000257,2]
[312284402,1705740671430,-907.48,0.00025737,2]
[312284403,1705740671439,-500.0,0.00025749,2]
[312284404,1705740671449,-287.93705659,0.00025753,2]
[312284405,1705740671459,-551.81888516,0.00025753,2]
[312284406,1705740671469,-500.0,0.00025753,2]
[312284407,1705740671478,-500.0,0.00025753,2]
[312284408,1705740671488,-532.65,0.00025753,2]
[312284409,1705740671498,-500.0,0.00025753,2]
[312284410,1705740671507,-500.0,0.00025753,2]
[312284411,1705740671518,-347.8387671,0.00025753,2]
[312284412,1705740671527,-500.0,0.00025753,2]
[312284413,1705740671538,-588.88379959,0.00025753,2]
[312284414,1705740671548,-322.51,0.00025753,2]
[312284415,1705740671558,-500.0,0.00025753,2]
[312284416,1705740671568,-500.0,0.00025753,2]
[312284417,1705740671578,-337.37,0.00025753,2]
[312284418,1705740671588,-500.0,0.00025753,2]
[312284419,1705740671597,-500.0,0.00025753,2]
[312284420,1705740671607,-500.0,0.00025753,2]
[312284421,1705740671617,-500.0,0.00025753,2]
[312284422,1705740671627,-500.0,0.00025753,2]
[312284423,1705740671637,-500.0,0.00025753,2]
[312284424,1705740671647,-500.0,0.00025753,2]
[312284425,1705740671657,-500.0,0.00025753,2]
[312284426,1705740671667,-500.0,0.00025753,2]
[312284427,1705740671676,-500.0,0.00025753,2]
[312284428,1705740671686,-500.0,0.00025753,2]
[312284429,1705740671695,-500.0,0.00025753,2]
[312284430,1705740671705,-500.0,0.00025753,2]
[312284431,1705740671716,-500.0,0.00025753,2]
[312284432,1705740671726,-505.13,0.00025753,2]
[312284433,1705740671735,-500.0,0.00025753,2]
[312284434,1705740671745,-155.88210388,0.00025753,2]
[312284435,1705740671755,-500.69,0.00025753,2]
[312284436,1705740671764,-500.0,0.00025753,2]
[312284437,1705740671774,-500.0,0.00025753,2]
[312284438,1705740671784,-500.0,0.00025753,2]
[312284439,1705740671794,-500.0,0.00025753,2]
[312284440,1705740671804,-500.0,0.00025753,2]
[312284441,1705740671813,-500.0,0.00025753,2]
[312284442,1705740671824,-500.0,0.00025753,2]
[312284443,1705740671834,-500.0,0.00025753,2]
[312284444,1705740671843,-500.0,0.00025753,2]
[312284445,1705740671853,-500.0,0.00025753,2]
[312284446,1705740671863,-500.0,0.00025753,2]
[312284447,1705740671873,-500.0,0.00025753,2]
[312284448,1705740671883,-500.0,0.00025753,2]
[312284449,1705740671893,-500.0,0.00025753,2]
[312284450,1705740671902,-500.0,0.00025753,2]
[312284451,1705740671912,-521.27828553,0.00025753,2]
[312284452,1705740671921,-500.0,0.00025753,2]
[312284453,1705740671932,-500.0,0.00025753,2]
[312284454,1705740671942,-500.0,0.00025753,2]
[312284455,1705740671952,-512.68,0.00025753,2]
[312284456,1705740671964,-500.0,0.00025753,2]
[312284457,1705740671974,-500.0,0.00025753,2]
[312284458,1705740671984,-628.06,0.00025753,2]
[312284459,1705740671993,-500.0,0.00025753,2]
[312284460,1705740672004,-500.0,0.00025753,2]
[312284461,1705740672014,-500.0,0.00025753,2]
[312284462,1705740672024,-500.0,0.00025753,2]
[312284463,1705740672036,-542.40124233,0.00025753,2]
[312284464,1705740672048,-500.0,0.00025753,2]
[312284465,1705740672058,-500.0,0.00025753,2]
[312284466,1705740672068,-474.18947909,0.00025753,2]
[312284467,1705740672080,-500.0,0.00025753,2]
[312284468,1705740672090,-500.0,0.00025753,2]
[312284469,1705740672100,-525.68,0.00025753,2]
[312284470,1705740672110,-500.0,0.00025753,2]
[312284471,1705740672121,-500.0,0.00025753,2]
[312284472,1705740672308,-500.0,0.00025753,2]
[312284473,1705740672318,-506.92736313,0.00025753,2]
[312284474,1705740672328,-500.0,0.00025753,2]
[312284475,1705740672337,-500.0,0.00025753,2]
[312284476,1705740672346,-500.0,0.00025753,2]
[312284477,1705740672356,-500.0,0.00025753,2]
[312284478,1705740672366,-500.0,0.00025753,2]
[312284479,1705740672375,-2305.29,0.00025753,2]
[312284480,1705740672384,-500.0,0.00025753,2]
[312284481,1705740672394,-500.0,0.00025753,2]
[312284482,1705740672403,-500.0,0.00025753,2]
[312284483,1705740672411,-504.44,0.00025753,2]
[312284484,1705740672420,-500.0,0.00025753,2]
[312284485,1705740672430,-500.0,0.00025753,2]
[312284486,1705740672439,-500.0,0.00025753,2]
[312284487,1705740672448,-500.0,0.00025753,2]
[312284488,1705740672467,-500.0,0.00025753,2]
[312284489,1705740672478,-500.0,0.00025753,2]
[312284490,1705740672488,-500.0,0.00025753,2]
[312284491,1705740672498,-642.16,0.00025753,2]
[312284492,1705740672508,-500.0,0.00025753,2]
[312284493,1705740672519,-500.0,0.00025753,2]
[312284494,1705740672530,-500.0,0.00025753,2]
[312284495,1705740672540,-500.0,0.00025753,2]
[312284496,1705740672550,-500.0,0.00025753,2]
[312284497,1705740672560,-500.0,0.00025753,2]